[Event "GER-chT Youth Countries 2018"]
[Site "Wurzburg"]
[Date "2018.10.06"]
[Round "6"]
[White "Urban, Konstantin"]
[Black "Nguyen, Huy Dat"]
[Result "1-0"]
[ECO "C00"]
[WhiteElo "2279"]
[BlackElo "2194"]
[Annotator "NA"]
[PlyCount "105"]
[EventDate "2018.10.03"]
[EventType "team-tourn"]
[EventCountry "GER"]
[SourceTitle "playchess.com"]
[Source "ChessBase"]
[SourceQuality "1"]
[TimeControl "40/5400+30:1800+30"]

{[%evp 12,84,33,33,50,44,60,47,58,50,38,52,62,61,63,65,85,80,96,71,120,118,129,107,59,79,89,95,90,39,31,21,41,20,55,50,85,45,109,63,47,11,44,41,258,260,289,160,190,152,141,143,143,147,149,139,32767,32767,142,134,164,164,142,159,200,90,87,97,100,94,32767,93,131,114,270]} 1. e4 {[%emt 0:00:00]} e6 {[%emt 0:00:00]} 2. d4 {[%emt 0:00:01]} b6 {[%emt 0:00:00]} 3. Bd3 {[%emt 0:01:14]} Bb7 {[%emt 0:00:00]} 4. Qe2 {[%emt 0:00:59]} g6 {[%emt 0:01:50] B00: Queen's Fianchetto Defence, Nimzowitsch Defence} (4... Nf6 5. Nf3 d6 6. O-O Nbd7 7. Re1 e5 8. Nc3 Be7 9. Bg5 h6 10. Bh4 Nh5 11. Bxe7 Qxe7 12. Ba6 Nf4 13. Qc4 Bxa6 14. Qxa6 {½-½ (23) Solak,D (2629)-Cicak,S (2566) Stockholm 2012}) 5. Nf3 {[%emt 0:01:08]} Bg7 {[%emt 0:01:12]} 6. c3 {[%emt 0:00:05]} d6 {[%emt 0:03:09]} 7. O-O {[%emt 0:01:01]} Ne7 {[%emt 0:01:58] LiveBook: 3 Games} 8. Re1 {[%emt 0:03:54]} Nd7 {[%emt 0:01:23]} 9. a4 $146 {[%emt 0:00:34]} ({Predecessor:} 9. Nbd2 O-O 10. Nf1 h6 11. Ng3 e5 {1-0 (38) Ozbay,E (2039)-Sredojevic,I (2387) Backi Petrovac 2018}) 9... a6 {[%emt 0:00:29]} 10. Na3 {[%emt 0:07:41]} O-O {[%emt 0:03:35]} 11. Bf4 {[%emt 0:02:01]} Kh8 {[%emt 0:06:33]} 12. Rad1 {[%emt 0:02:12]} Qe8 {[%emt 0:13:30]} 13. Bc2 Ra7 {[%emt 0:24:52]} 14. h3 {[%emt 0:26:11]} h6 {[%emt 0:05:08]} 15. Bc1 {[%emt 0:15:54]} g5 {[%emt 0:03:53]} 16. h4 {[%emt 0:02:17]} f6 {[%emt 0:02:52]} 17. hxg5 {[%emt 0:08:35]} fxg5 {[%emt 0:00:26]} 18. Nh2 {[%emt 0:01:20]} e5 {[%emt 0:02:24]} 19. Rd3 {[%emt 0:02:26]} Ng6 {[%emt 0:04:33]} 20. g3 {[%emt 0:02:34]} (20. Bxg5 $16 hxg5 21. Qh5+ Kg8 22. Qxg5 exd4 23. Bb3+ d5 24. cxd4) 20... Nf6 {[%emt 0:03:42]} 21. Rdd1 {[%emt 0:00:14]} Bc8 {[%emt 0:03:09]} 22. Nc4 {[%emt 0:00:19]} b5 {[%emt 0:02:08]} 23. Ne3 {[%emt 0:02:36]} bxa4 {[%emt 0:04:39]} 24. Nf5 {[%emt 0:06:23]} Qf7 {[%emt 0:05:20]} (24... Rb7 $14) 25. dxe5 {[%emt 0:04:23]} ({Stronger than} 25. Bxa4 Nxe4 26. g4 Nf6 $17) 25... Nxe5 {[%emt 0:01:28]} 26. f4 {[%emt 0:01:38]} gxf4 {[%emt 0:00:59]} 27. gxf4 {[%emt 0:00:01]} Neg4 $2 {[%emt 0:01:37]} ({Black should try} 27... Ng6 $14) 28. Nxg4 {[%emt 0:00:35]} Qg6 {[%emt 0:00:12]} 29. Ne7 {[%emt 0:02:21]} ({Not} 29. Be3 Rb7 $14) 29... Qxg4+ {[%emt 0:00:16]} 30. Qxg4 {[%emt 0:00:02]} Bxg4 {[%emt 0:00:06]} 31. Ng6+ {[%emt 0:01:24]} ({Much less strong is} 31. Bxa4 $6 Bxd1 32. Ng6+ Kg8 $14) 31... Kg8 {[%emt 0:00:14]} 32. Nxf8 {[%emt 0:00:43]} Bxd1 {[%emt 0:00:08]} 33. Bxd1 {[%emt 0:00:09]} Kxf8 {[%emt 0:00:09]} 34. Bxa4 {[%emt 0:00:05]} Rb7 {[%emt 0:02:12]} 35. Kg2 {[%emt 0:01:10]} Ke7 {[%emt 0:00:40]} 36. Kf3 {[%emt 0:00:18]} Nd7 {[%emt 0:00:47]} 37. Rg1 {[%emt 0:01:54]} Bf8 {[%emt 0:02:02]} 38. Bc2 {[%emt 0:01:36]} (38. b4 $18) 38... a5 {[%emt 0:00:16]} 39. Bd3 {[%emt 0:01:13]} Nc5 {[%emt 0:00:55]} 40. Bc4 {[%emt 0:00:16]} c6 {[%emt 0:00:39]} 41. Rg8 {[%emt 0:10:43]} Rb8 {[%emt 0:09:23]} 42. Rh8 {[%emt 0:05:47]} Kf6 $18 {[%emt 0:11:12]} (42... Re8 $142 43. e5 dxe5 44. fxe5 Nd7) 43. Be3 {[%emt 0:04:59]} Nxe4 {[%emt 0:06:10]} 44. Bd4+ {[%emt 0:01:05]} Kf5 {[%emt 0:01:04]} 45. Bd3 {[%emt 0:02:09]} d5 {[%emt 0:00:04]} 46. Be5 {[%emt 0:01:50]} Re8 {[%emt 0:04:36]} 47. Bg7 {[%emt 0:02:01]} Bxg7 {[%emt 0:00:30]} 48. Rxe8 {[%emt 0:00:06]} a4 {[%emt 0:00:12]} 49. Bxe4+ {[%emt 0:00:49]} dxe4+ {[%emt 0:00:36]} 50. Rxe4 {[%emt 0:00:02]} a3 {[%emt 0:00:00]} 51. bxa3 {[%emt 0:00:03]} Bxc3 {[%emt 0:00:00]} 52. Rc4 {[%emt 0:00:02]} Bb2 {[%emt 0:00:26]} 53. a4 {[%emt 0:00:11] Ke4+ Kxe4} 1-0

[Event "GER-chT Youth Countries 2018"]
[Site "Wurzburg"]
[Date "2018.10.06"]
[Round "6"]
[White "Hartge, Gedeon"]
[Black "Arnhold, Steffi"]
[Result "1-0"]
[ECO "E49"]
[WhiteElo "2214"]
[BlackElo "1955"]
[Annotator "RC"]
[PlyCount "57"]
[EventDate "2018.10.03"]
[EventType "team-tourn"]
[EventCountry "GER"]
[SourceTitle "playchess.com"]
[Source "ChessBase"]
[SourceQuality "1"]
[TimeControl "40/5400+30:1800+30"]

1. d4 {[%emt 0:00:00]} Nf6 {[%emt 0:00:00]} 2. c4 {[%emt 0:00:00]} e6 {[%emt 0:00:00]} 3. Nc3 {[%emt 0:00:00]} Bb4 {[%emt 0:00:04]} 4. e3 {[%emt 0:00:04]} O-O {[%emt 0:00:31]} 5. Bd3 {[%emt 0:00:11]} d5 {[%emt 0:00:51]} 6. a3 {[%emt 0:00:10]} Bxc3+ 7. bxc3 {[%emt 0:00:04]} b6 {[%emt 0:02:53]} 8. cxd5 {[%emt 0:03:30]} exd5 {[%emt 0:00:14]} 9. Ne2 {[%emt 0:04:06]} c5 {[%emt 0:02:16]} 10. O-O {[%emt 0:00:29]} Nc6 {[%emt 0:02:35]} 11. Ng3 {[%emt 0:04:03]} Re8 {[%emt 0:03:48]} 12. f3 {[%emt 0:01:07]} h5 {[%emt 0:11:52]} 13. Ra2 {[%emt 0:01:37]} Qc7 {[%emt 0:18:10]} 14. Re2 {[%emt 0:11:55]} Bd7 {[%emt 0:05:22]} 15. Ree1 {[%emt 0:03:29]} Rad8 {[%emt 0:02:14]} 16. Qc2 {[%emt 0:11:45]} Bc8 {[%emt 0:07:18]} 17. Qf2 {[%emt 0:02:29]} g6 {[%emt 0:17:39]} 18. Bb2 {[%emt 0:08:15]} Re6 {[%emt 0:06:09]} 19. Ne2 {[%emt 0:05:34]} c4 {[%emt 0:02:20]} 20. Bc2 {[%emt 0:01:32]} b5 {[%emt 0:00:49]} 21. Nf4 {[%emt 0:02:23]} Ree8 {[%emt 0:00:21]} 22. Qg3 {[%emt 0:00:48]} Qd7 {[%emt 0:04:02]} 23. h3 {[%emt 0:04:51]} Ne7 {[%emt 0:05:28]} 24. e4 {[%emt 0:03:45]} Kh8 {[%emt 0:02:07]} 25. e5 {[%emt 0:03:56]} Nh7 {[%emt 0:01:00]} 26. e6 {[%emt 0:00:05]} fxe6 {[%emt 0:01:16]} 27. Nxe6 {[%emt 0:01:19]} Qd6 {[%emt 0:00:49]} 28. Qxd6 {[%emt 0:00:43]} Rxd6 {[%emt 0:00:14]} 29. Nc7 {[%emt 0:00:03]} 1-0

[Event "GER-chT Youth Countries 2018"]
[Site "Wurzburg"]
[Date "2018.10.06"]
[Round "6"]
[White "Lesny, Florian"]
[Black "Arakelian, Aik"]
[Result "1/2-1/2"]
[ECO "B78"]
[WhiteElo "2073"]
[BlackElo "1879"]
[Annotator "NA RC"]
[PlyCount "56"]
[EventDate "2018.10.03"]
[EventType "team-tourn"]
[EventCountry "GER"]
[SourceTitle "playchess.com"]
[Source "ChessBase"]
[SourceQuality "1"]
[TimeControl "40/5400+30:1800+30"]

{[%evp 18,56,33,21,76,35,59,66,77,85,63,70,107,1,143,93,121,98,101,52,122,115,282,165,215,220,249,241,220,246,227,228,235,251,277,183,258,253,284,0,0]} 1. e4 {[%emt 0:00:00]} c5 {[%emt 0:00:14]} 2. Nf3 {[%emt 0:00:00]} Nc6 {[%emt 0:00:13]} 3. d4 {[%emt 0:00:00]} cxd4 {[%emt 0:00:14]} 4. Nxd4 {[%emt 0:00:05]} g6 {[%emt 0:00:05]} 5. Nc3 {[%emt 0:01:05]} Bg7 {[%emt 0:00:11]} 6. Be3 {[%emt 0:00:12]} Nf6 {[%emt 0:00:23]} 7. Bc4 {[%emt 0:00:17]} d6 {[%emt 0:00:59]} 8. f3 {[%emt 0:01:57]} O-O {[%emt 0:00:28]} 9. Qd2 {[%emt 0:00:22]} Bd7 {[%emt 0:02:54]} 10. O-O-O {[%emt 0:01:45]} Na5 {[%emt 0:02:18]} (10... Rc8 $11 11. Nxc6 Rxc6) 11. Bb3 {[%emt 0:00:40]} Rc8 {[%emt 0:00:44]} 12. Kb1 {[%emt 0:01:13]} Nc4 {[%emt 0:04:45]} 13. Bxc4 $1 {[%emt 0:00:16]} Rxc4 {[%emt 0:00:09]} 14. g4 {[%emt 0:00:30] LiveBook: 275 Games} Qa5 {[%emt 0:01:04]} 15. Nd5 {[%emt 0:06:05] B78: Sicilian Dragon: Yugoslav Attack, 9 Bc4 Bd7 10 0-0-0 Rc8} (15. Nb3 $16 Qa6 {[#]} 16. e5 $1 {[%mdl 512]} Nxg4 (16... Ne8 17. Nd5 Bxe5 18. Bh6 Bf6 19. g5 Bg7 20. Nxe7+ Kh8 21. Rhe1 Be6 22. a3 Rh4 {1-0 (32) Bitoon,R (2417)-Ranola,Y (2373) Olongapo City 2015}) 17. fxg4) 15... Qd8 {[%emt 0:00:15]} (15... Qxd2 $1 $11 {bleibt in der Remisbreite.} 16. Nxf6+ (16. Nxe7+ Kh8 $17) 16... Bxf6 17. Rxd2 b5) 16. Nxf6+ {[%emt 0:17:48]} Bxf6 {[%emt 0:00:28]} 17. b3 $146 {[%emt 0:01:16]} ({Predecessor:} 17. h4 e5 18. Ne2 Rc6 19. g5 Bh8 20. h5 Be6 21. Nc3 Qd7 22. Nd5 Bxd5 23. Qxd5 {0-1 (59) Petronic,S (2203)-Boric,T (2050) Kragujevac 2000}) 17... Rc8 {[%emt 0:03:10]} 18. h4 {[%emt 0:01:22]} b5 {[%emt 0:11:09]} 19. h5 {[%emt 0:01:46]} a5 {[%emt 0:01:48]} (19... Qc7 $16) 20. Bh6 {[%emt 0:01:19]} ({Don't do} 20. hxg6 $6 fxg6 21. Nxb5 Bxb5 $16) 20... b4 {[%emt 0:03:22]} (20... Qc7 $16) 21. g5 {[%emt 0:07:51]} ({Resist} 21. Bxf8 $6 Kxf8 22. Qh6+ Kg8 $16) 21... Bh8 {[%emt 0:07:27]} 22. Bxf8 {[%emt 0:01:41]} Qxf8 {[%emt 0:00:29]} 23. hxg6 {[%emt 0:00:55]} fxg6 {[%emt 0:03:30]} 24. Qh2 {[%emt 0:10:15]} Qg7 {[%emt 0:02:27]} 25. f4 {[%emt 0:04:02]} Rc3 {[%emt 0:10:19]} 26. Qf2 {[%emt 0:13:27]} Bg4 {[%emt 0:08:00]} 27. Rd2 {[%emt 0:00:11]} Rf3 {[%emt 0:17:44]} 28. Qg2 $2 {[%emt 0:00:57]} (28. Qh2 $18) 28... Rxf4 $11 {[%emt 0:00:45]} 1/2-1/2

[Event "GER-chT Youth Countries 2018"]
[Site "Wurzburg"]
[Date "2018.10.06"]
[Round "6"]
[White "Lutz, Ruben"]
[Black "Roseneck, Jonas"]
[Result "0-1"]
[ECO "A45"]
[WhiteElo "2043"]
[BlackElo "2262"]
[Annotator "NA"]
[PlyCount "136"]
[EventDate "2018.10.03"]
[EventType "team-tourn"]
[EventCountry "GER"]
[SourceTitle "playchess.com"]
[Source "ChessBase"]
[SourceQuality "1"]
[TimeControl "40/5400+30:1800+30"]

{[%evp 16,95,29,7,8,6,14,-47,-7,-26,-23,-56,-22,-33,-27,-26,-28,-77,-91,-95,-81,-113,-48,-56,-11,0,0,-66,0,-18,34,14,58,36,28,19,35,-28,-29,-63,-58,-67,-62,-289,-4,-2,0,0,33,39,49,12,10,8,0,0,14,32767,32767,32767,32767,-59,-37,-173,-208,-175,-217,32767,32767,32767,32767,32767,-139,-250,-146,-135,-143,-156,-152,-170,-146,-142]} 1. d4 {[%emt 0:00:00]} Nf6 {[%emt 0:00:00]} 2. Bf4 {[%emt 0:00:00]} d5 {[%emt 0:00:00]} 3. e3 {[%emt 0:00:17]} c5 {[%emt 0:00:04]} 4. c3 {[%emt 0:00:26]} Nc6 {[%emt 0:00:05]} 5. Nd2 {[%emt 0:00:16]} e6 {[%emt 0:00:05]} 6. Ngf3 {[%emt 0:00:24]} cxd4 {[%emt 0:00:06]} 7. exd4 {[%emt 0:00:12] D02: 1 d4 d5 2 Nf3 sidelines, including 2...Nf6 3 g3 and 2...Nf6 3 Bf4} Nh5 {[%emt 0:00:05]} 8. Be3 {[%emt 0:00:13]} Bd6 {[%emt 0:05:12] LiveBook: 100 Games} 9. Ne5 {[%emt 0:00:32]} (9. Bd3 Nf4 10. Bxf4 Bxf4 11. g3 Bd6 12. O-O O-O 13. Re1 Bd7 14. h4 h6 {1-0 (44) Caruana,F (2822)-Aronian,L (2767) chess.com INT 2018}) 9... g6 {[%emt 0:00:07]} 10. Ndf3 {[%emt 0:05:10]} f6 {[%emt 0:12:37]} 11. Nd3 {[%emt 0:13:17]} (11. Ng4 $11) 11... Qc7 {[%emt 0:03:50]} 12. Qd2 {[%emt 0:03:05]} O-O {[%emt 0:06:30]} 13. Be2 {[%emt 0:01:43]} Ng7 {[%emt 0:01:05]} 14. h4 $146 {[%emt 0:15:13]} ({Predecessor:} 14. O-O Nf5 {0-1 (47) Derakhshani,B (2298)-Stanisz,P (2150) London 2017}) 14... e5 {[%emt 0:04:26]} 15. dxe5 {[%emt 0:01:56]} fxe5 {[%emt 0:00:31]} 16. Nc1 {[%emt 0:14:41]} Be6 {[%emt 0:26:58]} 17. O-O {[%emt 0:04:07]} Kh8 {[%emt 0:02:28]} 18. Nb3 {[%emt 0:04:59]} b6 {[%emt 0:04:43]} (18... Nf5 $17) 19. Rad1 {[%emt 0:01:44]} Rad8 {[%emt 0:02:16]} 20. Bg5 {[%emt 0:01:55]} Rd7 {[%emt 0:04:38]} 21. Qc1 {[%emt 0:02:07]} (21. Bh6 $11) 21... Bg8 {[%emt 0:04:53]} 22. Nh2 {[%emt 0:10:25]} Be7 {[%emt 0:07:18]} 23. Ng4 {[%emt 0:01:30]} Ne6 {[%emt 0:01:03]} (23... Be6 $11) 24. Bb5 {[%emt 0:03:54]} Nxg5 {[%emt 0:03:07]} 25. Bxc6 {[%emt 0:02:34]} Rd6 $1 {[%emt 0:04:31]} 26. Nxe5 {[%emt 0:03:41]} Ne4 {[%emt 0:00:12]} 27. Bb5 {[%emt 0:04:21]} Bxh4 {[%emt 0:01:21]} 28. Nf3 {[%emt 0:00:40]} Be7 {[%emt 0:01:22]} 29. Nbd4 $2 {[%emt 0:00:11] [#]} (29. Bd3 $15) 29... Rdf6 $2 {[%emt 0:00:20]} (29... g5 $1 $19 30. Bd3 Rh6) 30. Bd3 $1 {[%emt 0:01:06]} Qc8 {[%emt 0:01:52]} 31. Qe3 {[%emt 0:00:53]} Qg4 {[%emt 0:01:58]} 32. Bxe4 {[%emt 0:02:28]} Qxe4 {[%emt 0:00:48]} 33. Qxe4 {[%emt 0:00:32]} dxe4 {[%emt 0:00:01]} 34. Nd2 {[%emt 0:00:39]} Bd5 {[%emt 0:01:17]} 35. Rde1 {[%emt 0:00:50]} Bc5 {[%emt 0:00:54]} 36. Nxe4 {[%emt 0:00:35]} Bxd4 {[%emt 0:00:00]} 37. cxd4 {[%emt 0:00:15]} Rf4 {[%emt 0:00:00]} 38. Nd2 {[%emt 0:00:37]} (38. f3 $11) 38... Rxd4 {[%emt 0:00:24]} 39. Nb3 {[%emt 0:00:17] [#]} (39. Re2 $15) 39... Rg4 $1 {[%emt 0:01:40]} 40. f3 {[%emt 0:01:35]} Rxf3 $1 {[%emt 0:00:33]} 41. Rxf3 {[%emt 0:03:53]} Bxf3 {[%emt 0:00:01]} 42. g3 {[%emt 0:00:27]} Bd5 {[%emt 0:01:17]} 43. Re3 {[%emt 0:02:13]} a5 {[%emt 0:07:02]} 44. Rd3 {[%emt 0:07:02]} (44. a3 $142) 44... Rg5 {[%emt 0:00:33]} 45. Nc1 {[%emt 0:03:21]} Re5 {[%emt 0:01:03]} 46. Kf2 {[%emt 0:00:37]} Kg7 {[%emt 0:00:06]} 47. b3 {[%emt 0:00:35]} Bc6 {[%emt 0:04:07]} 48. Rc3 $17 {[%emt 0:04:22]} Re6 {[%emt 0:01:46]} 49. Ne2 {[%emt 0:01:48]} Rd6 {[%emt 0:02:58]} 50. Ke3 {[%emt 0:02:07]} Kf6 {[%emt 0:00:35]} 51. Nd4 {[%emt 0:00:20]} Bd5 {[%emt 0:00:25]} 52. Rc1 {[%emt 0:03:22]} Ke5 {[%emt 0:01:38]} 53. Rc7 {[%emt 0:01:26]} h5 {[%emt 0:01:37]} 54. Rg7 {[%emt 0:00:45]} Kf6 {[%emt 0:00:33]} 55. Rc7 {[%emt 0:00:41]} Kg5 {[%emt 0:00:23]} 56. Rg7 {[%emt 0:03:07]} Rd8 {[%emt 0:03:55]} 57. Re7 {[%emt 0:01:15]} Kg4 {[%emt 0:00:59]} 58. Ne2 {[%emt 0:00:12]} Bc6 {[%emt 0:01:08]} 59. Rg7 {[%emt 0:00:45]} Rd6 {[%emt 0:02:08]} 60. Nf4 {[%emt 0:00:20]} g5 {[%emt 0:00:58]} 61. Rg8 {[%emt 0:00:54]} Bb5 {[%emt 0:01:56]} 62. Rg7 {[%emt 0:00:32]} Rd7 {[%emt 0:00:30]} 63. Rg8 {[%emt 0:00:24]} Re7+ {[%emt 0:00:04]} 64. Kf2 {[%emt 0:00:18]} h4 {[%emt 0:00:12]} 65. Nd5 {[%emt 0:00:54]} hxg3+ {[%emt 0:00:15]} 66. Kg1 {[%emt 0:00:16]} Re1+ {[%emt 0:00:03]} 67. Kg2 {[%emt 0:00:08]} Bf1+ {[%emt 0:00:13]} 68. Kg1 {[%emt 0:00:10]} Bh3# {[%emt 0:00:02]} 0-1

[Event "GER-chT Youth Countries 2018"]
[Site "Wurzburg"]
[Date "2018.10.06"]
[Round "6"]
[White "Richter, Nils"]
[Black "von Krosigk, Florian"]
[Result "1-0"]
[ECO "B43"]
[WhiteElo "2035"]
[BlackElo "1897"]
[Annotator "NA RC"]
[PlyCount "33"]
[EventDate "2018.10.03"]
[EventType "team-tourn"]
[EventCountry "GER"]
[SourceTitle "playchess.com"]
[Source "ChessBase"]
[SourceQuality "1"]
[TimeControl "40/5400+30:1800+30"]

{[%evp 16,30,596,631,595,622,647,616,687,700,756,737,805,818,794,424,414]} 1. e4 {[%emt 0:00:00]} c5 {[%emt 0:00:00]} 2. Nf3 {[%emt 0:00:00]} e6 {[%emt 0:00:00]} 3. d4 {[%emt 0:00:00]} cxd4 {[%emt 0:00:00]} 4. Nxd4 {[%emt 0:00:00]} a6 {[%emt 0:00:14]} 5. Nc3 {[%emt 0:00:00]} Qc7 {[%emt 0:00:25]} 6. g3 {[%emt 0:00:02]} b5 {[%emt 0:02:53]} 7. Bg2 {[%emt 0:00:41]} Bb7 {[%emt 0:01:23]} 8. O-O {[%emt 0:00:12]} Ne7 $2 {[%emt 0:04:00] [#]} ({Better is} 8... Nc6 $14) 9. Ndxb5 $1 {[%emt 0:02:01]} axb5 {[%emt 0:08:18]} 10. Nxb5 {[%emt 0:00:09]} Qc6 {[%emt 0:01:43]} 11. Nd6+ {[%emt 0:00:06]} Kd8 {[%emt 0:00:03]} 12. Nxf7+ {[%emt 0:00:18]} Ke8 {[%emt 0:00:16]} 13. Nxh8 {[%emt 0:00:33]} g6 {[%emt 0:00:24]} 14. Qf3 {[%emt 0:00:19]} Nf5 {[%emt 0:00:40]} 15. exf5 $18 {[%emt 0:02:50]} Qxf3 {[%emt 0:00:04]} 16. Bxf3 {[%emt 0:00:05]} Bxf3 {[%emt 0:00:03]} 17. fxg6 {[%emt 0:00:19]} 1-0

[Event "GER-chT Youth Countries 2018"]
[Site "Wurzburg"]
[Date "2018.10.06"]
[Round "6"]
[White "Wu, Leon"]
[Black "Pubantz, Jan"]
[Result "0-1"]
[ECO "B54"]
[WhiteElo "2009"]
[BlackElo "2084"]
[Annotator "NA RC"]
[PlyCount "90"]
[EventDate "2018.10.03"]
[EventType "team-tourn"]
[EventCountry "GER"]
[SourceTitle "playchess.com"]
[Source "ChessBase"]
[SourceQuality "1"]
[TimeControl "40/5400+30:1800+30"]

{[%evp 12,79,29,8,27,32767,32767,32767,32767,29,34,27,30,31,36,-40,-33,-22,-33,-54,-60,-56,-35,-56,8,16,2,0,0,0,0,-40,-28,-36,-42,-33,-24,-79,-96,-90,-141,-99,-85,-81,32767,32767,32767,32767,-86,-90,-88,-173,-163,-144,-136,-441,-529,-479,-551,-749,-962,-1592,-529,32767,32767,32767,32767,-12843,-29970,-5057]} 1. e4 {[%emt 0:00:00]} c5 {[%emt 0:00:00]} 2. Nf3 {[%emt 0:00:00]} d6 {[%emt 0:00:00]} 3. d4 {[%emt 0:00:00]} cxd4 {[%emt 0:00:00]} 4. Nxd4 {[%emt 0:00:00]} Nf6 {[%emt 0:00:00]} 5. f3 {[%emt 0:00:04]} e5 {[%emt 0:03:27]} 6. Nb3 {[%emt 0:00:37]} d5 {[%emt 0:11:28]} 7. Bg5 {[%emt 0:00:40]} Be6 {[%emt 0:00:10]} 8. Bxf6 {[%emt 0:00:25]} gxf6 {[%emt 0:00:13]} 9. exd5 {[%emt 0:00:09]} Qxd5 {[%emt 0:00:06]} 10. Qxd5 {[%emt 0:00:23]} Bxd5 {[%emt 0:00:05]} 11. Nc3 {[%emt 0:00:11]} Be6 {[%emt 0:02:49] LiveBook: 108 Games} 12. O-O-O {[%emt 0:00:21] B55: Sicilian: 2...d6 3 d4 cxd4 4 Nxd4 Nf6 5 f3} (12. Nb5 Kd8 13. O-O-O+ Kc8 14. Nc3 Nd7 15. Nd5 h5 16. Bb5 Bxd5 17. Bxd7+ Kxd7 18. Rxd5+ Ke6 19. Rhd1 h4 20. Kb1 Rg8 21. c4 Rxg2 22. Nd4+ Ke7 23. f4 Rxh2 24. Nf5+ Ke6 25. Nd4+ Ke7 26. Nf5+ Ke6 {½-½ (26) Nabaty,T (2690)-Sjugirov,S (2652) Batumi 2018}) 12... Nc6 {[%emt 0:04:05]} 13. Nd5 {[%emt 0:03:15]} (13. Bb5 $14) 13... Bh6+ {[%emt 0:10:42]} 14. Kb1 {[%emt 0:01:54]} O-O-O {[%emt 0:00:58]} 15. Nc3 {[%emt 0:14:04]} Rxd1+ {[%emt 0:00:09]} 16. Nxd1 $146 {[%emt 0:00:07]} Rd8 {[%emt 0:08:52]} 17. Nc3 {[%emt 0:02:45]} Bxb3 {[%emt 0:20:16]} ({Black should try} 17... Be3 $15) 18. axb3 {[%emt 0:01:53]} Rd2 {[%emt 0:01:07]} 19. g3 {[%emt 0:42:10]} Nd4 {[%emt 0:02:40]} 20. Bd3 {[%emt 0:01:12]} Nxf3 {[%emt 0:06:49]} 21. Bxh7 {[%emt 0:02:23]} Rxh2 {[%emt 0:03:48]} 22. Rxh2 {[%emt 0:00:21]} Nxh2 {[%emt 0:00:05]} 23. Ne4 {[%emt 0:01:43]} Bg7 24. Bg8 {[%emt 0:01:40]} Kd7 {[%emt 0:05:14]} 25. Bxf7 {[%emt 0:01:26]} f5 {[%emt 0:02:02]} 26. Nf2 {[%emt 0:01:20]} e4 {[%emt 0:02:28]} 27. Bg6 {[%emt 0:20:55]} Ke6 {[%emt 0:00:14]} 28. g4 {[%emt 0:00:26]} Nxg4 {[%emt 0:00:23]} 29. Nxg4 {[%emt 0:00:09]} fxg4 {[%emt 0:00:09]} 30. Bxe4 {[%emt 0:00:05]} b6 {[%emt 0:10:48]} 31. c3 {[%emt 0:03:17]} (31. Kc1 $17 {was necessary.}) 31... Ke5 {[%emt 0:00:30]} 32. Bb7 {[%emt 0:01:18]} Kf4 {[%emt 0:00:08]} 33. Ka2 $2 {[%emt 0:00:44] [#]} (33. b4 $17 {is more resistant.}) 33... a5 $1 {[%emt 0:02:41]} 34. Ka3 {[%emt 0:00:08]} Bf8+ {[%emt 0:00:51]} 35. Ka4 {[%emt 0:00:42]} Bc5 {[%emt 0:01:24]} 36. Kb5 {[%emt 0:00:19]} Kg3 {[%emt 0:00:29]} 37. Ka4 {[%emt 0:00:41]} Kf2 {[%emt 0:00:09]} 38. b4 {[%emt 0:00:36]} axb4 {[%emt 0:00:07]} 39. cxb4 {[%emt 0:00:33]} Be3 {[%emt 0:00:09]} 40. Kb3 {[%emt 0:00:24]} g3 {[%emt 0:00:06]} 41. Ka4 {[%emt 0:08:39]} g2 {[%emt 0:00:12]} 42. Bxg2 {[%emt 0:01:40]} Kxg2 {[%emt 0:00:05]} 43. b3 {[%emt 0:02:46]} Kf3 {[%emt 0:00:11]} 44. Kb5 {[%emt 0:00:47]} Ke2 {[%emt 0:00:50]} 45. Ka4 {[%emt 0:03:24]} Kd3 {[%emt 0:00:14]} 0-1